fUST/lending_fUST_20240915
["ID","MTS","AMOUNT","RATE_DAILY","PERIOD"]
[338187776,1726378746910,165.064629,0.00013699,2]
[338187779,1726378875890,401.38186233,0.000135,2]
[338187787,1726379310827,165.064629,0.00013699,2]
[338188129,1726379440047,-335.47651947,0.0001776,2]
[338188130,1726379440062,-1616.57073332,0.0001776,2]
[338188131,1726379440075,-1047.95274721,0.0001776,2]
[338188132,1726379440085,-1495.11506508,0.0001776,2]
[338188133,1726379440095,-500.0,0.0001786,2]
[338188134,1726379440105,-500.0,0.0001836,2]
[338188135,1726379440116,-1859.66337446,0.00018376,2]
[338188136,1726379440128,-150.0,0.00018395,2]
[338188137,1726379440139,-192.7658216,0.00018476,2]
[338188138,1726379440150,-1000.0,0.0001849,2]
[338188139,1726379440161,-417.159616,0.000185,2]
[338188140,1726379440171,-400.0,0.000185,2]
[338188141,1726379440182,-300.0,0.00018593,2]
[338188142,1726379440193,-300.0,0.00018593,2]
[338188143,1726379440204,-2000.0,0.00018594,2]
[338188144,1726379440215,-208.579808,0.000186,2]
[338188145,1726379440225,-208.579808,0.000186,2]
[338188146,1726379440235,-206.9094279,0.000186,2]
[338188147,1726379440247,-153.0,0.000186,2]
[338188148,1726379440256,-153.0,0.000186,2]
[338188149,1726379440266,-4202.30906858,0.00018601,2]
[338188150,1726379440277,-1000.0,0.00018611,2]
[338188151,1726379440287,-1000.0,0.00018634,2]
[338188153,1726379440299,-1000.0,0.00018637,2]
[338188154,1726379440308,-1000.0,0.00018651,2]
[338188155,1726379440317,-1000.0,0.00018655,2]
[338188157,1726379440329,-1000.0,0.00018657,2]
[338188158,1726379440340,-1000.0,0.00018664,2]
[338188160,1726379440353,-500.0,0.00018673,2]
[338188163,1726379440364,-500.0,0.00018673,2]
[338188165,1726379440375,-1000.0,0.00018673,2]
[338188167,1726379440384,-1000.0,0.00018685,2]
[338188168,1726379440394,-1000.0,0.00018688,2]
[338188169,1726379440404,-1000.0,0.00018693,2]
[338188170,1726379440414,-200.21644148,0.000187,2]
[338188171,1726379440424,-150.112233,0.000187,2]
[338188172,1726379440434,-150.112233,0.000187,2]
[338188173,1726379440444,-150.112233,0.000187,2]
[338188174,1726379440456,-150.112233,0.000187,2]
[338188175,1726379440466,-208.579808,0.000187,2]
[338188176,1726379440476,-208.579808,0.000187,2]
[338188177,1726379440486,-7330.0,0.000187,2]
[338188178,1726379440495,-1000.0,0.0001871,2]
[338188179,1726379440505,-1000.0,0.00018711,2]
[338188180,1726379440514,-1000.0,0.00018714,2]
[338188181,1726379440524,-1639.45973198,0.00018721,2]
[338188372,1726379443238,-134.73851513,0.00018721,2]
[338188375,1726379443251,-24327.02976469,0.00018721,2]
[338188377,1726379443261,-24722.25747191,0.00018721,2]
[338192052,1726380373396,165.064629,0.00013699,2]
[338192109,1726380638264,-500.0,0.0001786,2]
[338192110,1726380638275,-620.8416188,0.00018044,2]
[338192111,1726380638286,-234.88817646,0.00018044,2]
[338192112,1726380638296,-535.85788766,0.0001836,2]
[338192113,1726380638311,-258.83331934,0.0001836,2]
[338192114,1726380638320,-1000.0,0.00018621,2]
[338192115,1726380638332,-1000.0,0.00018624,2]
[338192116,1726380638342,-657.02265516,0.00018631,2]
[338192117,1726380638355,-342.97734484,0.00018631,2]
[338192118,1726380638365,-300.0,0.00018633,2]
[338192119,1726380638375,-300.0,0.00018633,2]
[338192120,1726380638393,-38.21758692,0.00018634,2]
[338192124,1726380640231,-961.78241308,0.00018634,2]
[338192125,1726380640241,-1000.0,0.00018634,2]
[338192126,1726380640251,-150.0,0.00018635,2]
[338192127,1726380640261,-3677.02043499,0.00018641,2]
[338192128,1726380640271,-518.5308155,0.00018669,2]
[338192129,1726380640280,-719.84259615,0.00018686,2]
[338192130,1726380640290,-1000.0,0.00018687,2]
[338192131,1726380640299,-658.0,0.000187,2]
[338192132,1726380640309,-1000.0,0.00018701,2]
[338192133,1726380640320,-150.54266055,0.0001872,2]
[338192134,1726380640329,-7023.53742585,0.0001872,2]
[338192135,1726380640340,-1000.0,0.00018725,2]
[338192136,1726380640350,-1000.0,0.00018726,2]
[338192137,1726380640359,-1000.0,0.00018728,2]
[338192138,1726380640369,-5328.02837534,0.00018731,2]
[338192153,1726380643350,-14671.97162466,0.00018731,2]
[338192155,1726380643360,-1000.0,0.00018741,2]
[338192157,1726380643372,-1000.0,0.00018743,2]
[338192159,1726380643382,-1000.0,0.00018747,2]
[338192161,1726380643393,-199.678,0.00018755,2]
[338192164,1726380643402,-1000.0,0.00018759,2]
[338192166,1726380643413,-1000.0,0.00018768,2]
[338192168,1726380643424,-151.0,0.0001877,2]
[338192171,1726380643435,-1000.0,0.00018771,2]
[338192173,1726380643445,-500.0,0.00018773,2]
[338192175,1726380643455,-260.99827811,0.00018773,2]
[338192177,1726380643464,-502.16903219,0.00018773,2]
[338192179,1726380643474,-500.0,0.00018773,2]
[338192181,1726380643483,-500.0,0.00018773,2]
[338192183,1726380643493,-500.0,0.00018773,2]
[338192185,1726380643503,-230.12137817,0.00018773,2]
[338192187,1726380643512,-375.28699432,0.00018773,2]
[338192189,1726380643523,-500.68393457,0.00018773,2]
[338192191,1726380643533,-500.0,0.00018773,2]
[338192193,1726380643544,-500.0,0.00018773,2]
[338192195,1726380643553,-500.0,0.00018773,2]
[338192197,1726380643564,-500.0,0.00018773,2]
[338192199,1726380643576,-500.0,0.00018773,2]
[338192202,1726380643587,-500.0,0.00018773,2]
[338192204,1726380643598,-500.0,0.00018773,2]
[338192206,1726380643608,-500.64703563,0.00018773,2]
[338192208,1726380643620,-500.0,0.00018773,2]
[338192210,1726380643633,-503.32549673,0.00018773,2]
[338192212,1726380643643,-500.83333874,0.00018773,2]
[338192214,1726380643654,-1000.0,0.00018776,2]
[338192217,1726380643664,-151.0,0.00018779,2]
[338192219,1726380643675,-151.0,0.0001878,2]
[338192221,1726380643684,-1000.0,0.00018787,2]
[338192223,1726380643696,-151.0,0.00018789,2]
[338192225,1726380643706,-151.478589,0.00018789,2]
[338192227,1726380643715,-151.0,0.00018789,2]
[338192229,1726380643726,-151.0,0.00018789,2]
[338192231,1726380643737,-151.0,0.00018789,2]
[338192233,1726380643748,-151.0,0.00018789,2]
[338192235,1726380643758,-151.0,0.00018789,2]
[338192237,1726380643769,-151.0,0.00018789,2]
[338192239,1726380643779,-151.0,0.00018789,2]
[338192242,1726380643792,-151.0,0.00018789,2]
[338192244,1726380643802,-151.0,0.00018789,2]
[338192246,1726380643812,-1542.510166,0.00018789,2]
[338192248,1726380643822,-1542.510166,0.00018789,2]
[338192250,1726380643832,-1105.89899458,0.0001879,5]
[338192252,1726380643842,-179.391087,0.0001879,2]
[338192254,1726380643853,-151.0,0.0001879,2]
[338192256,1726380643863,-151.0,0.0001879,2]
[338192258,1726380643872,-151.0,0.0001879,2]
[338192260,1726380643882,-167.783377,0.0001879,2]
[338192262,1726380643892,-151.0,0.0001879,2]
[338192264,1726380643903,-151.872509,0.0001879,2]
[338192267,1726380643913,-151.0,0.0001879,2]
[338192269,1726380643923,-151.0,0.0001879,2]
[338192271,1726380643933,-151.0,0.0001879,2]
[338192273,1726380643944,-151.0,0.0001879,2]
[338192275,1726380643956,-151.0,0.0001879,2]
[338192277,1726380643966,-151.0,0.0001879,2]
[338192279,1726380643977,-151.0,0.0001879,2]
[338192282,1726380643987,-151.0,0.0001879,2]
[338192283,1726380643996,-1000.0,0.0001879,2]
[338192285,1726380644006,-7187.1272349,0.0001879,2]
[338192288,1726380644019,-987.2586095,0.0001879,2]
[338192629,1726380914110,165.064629,0.00013699,2]
[338192639,1726381478136,165.064629,0.00013699,2]
[338192671,1726381832500,-1397.4501838,0.00017581,2]
[338192672,1726381832509,-192.7658216,0.00017698,2]
[338192673,1726381832519,-165.205327,0.00017798,2]
[338192674,1726381832528,-165.205327,0.00017983,2]
[338192675,1726381832538,-165.205327,0.00018169,2]
[338192676,1726381832548,-153.0,0.000182,2]
[338192677,1726381832558,-208.579808,0.000182,2]
[338192679,1726381832567,-165.205327,0.00018354,2]
[338192681,1726381832577,-150.0,0.00018358,2]
[338192683,1726381832586,-300.0,0.00018399,2]
[338192685,1726381832596,-300.0,0.00018399,2]
[338192687,1726381832605,-153.0,0.000184,2]
[338192689,1726381832615,-208.579808,0.000184,2]
[338192691,1726381832624,-153.0,0.000184,2]
[338192692,1726381832633,-153.0,0.000184,2]
[338192693,1726381832642,-153.0,0.000184,2]
[338192694,1726381832651,-337.7365135,0.000184,2]
[338192695,1726381832660,-208.579808,0.000184,2]
[338192696,1726381832669,-153.0,0.000185,2]
[338192697,1726381832679,-153.0,0.000185,2]
[338192698,1726381832688,-153.0,0.000185,2]
[338192699,1726381832698,-165.205327,0.00018539,2]
[338192700,1726381832707,-719.84259615,0.00018583,2]
[338192701,1726381832716,-1000.0,0.00018589,2]
[338192702,1726381832725,-1000.0,0.00018589,2]
[338192703,1726381832735,-1000.0,0.00018592,2]
[338192704,1726381832744,-208.579808,0.000186,2]
[338192705,1726381832754,-306.0,0.000186,2]
[338192706,1726381832764,-208.579808,0.000186,2]
[338192707,1726381832774,-153.0,0.000186,2]
[338192708,1726381832784,-411.2611725,0.000186,2]
[338192709,1726381832794,-411.2611725,0.000186,2]
[338192710,1726381832803,-153.0,0.000186,2]
[338192711,1726381832812,-153.0,0.000186,2]
[338192712,1726381832822,-961.78241308,0.00018601,2]
[338192713,1726381832832,-1000.0,0.00018604,2]
[338192714,1726381832842,-1000.0,0.00018609,2]
[338192715,1726381832851,-1000.0,0.0001862,2]
[338192716,1726381832860,-1000.0,0.00018623,2]
[338192717,1726381832869,-1000.0,0.00018629,2]
[338192718,1726381832879,-1000.0,0.00018634,2]
[338192719,1726381832889,-1000.0,0.00018637,2]
[338192720,1726381832898,-1000.0,0.00018649,2]
[338192721,1726381832907,-1000.00420761,0.00018666,2]
[338192722,1726381832916,-1000.0,0.0001867,2]
[338192723,1726381832925,-295.11726626,0.00018688,2]
[338193138,1726381838633,-281.05910888,0.00018688,2]
[338193312,1726381840458,-423.82362486,0.00018688,2]
[338193314,1726381840467,-130.78989705,0.000187,2]
[338193317,1726381840479,-748.0007739,0.000187,2]
[338193319,1726381840491,-121.20932905,0.000187,2]
[338193321,1726381840500,-165.205327,0.00018725,2]
[338193323,1726381840509,-1000.0,0.00018726,2]
[338193325,1726381840518,-1000.0,0.00018754,2]
[338193327,1726381840528,-199.678,0.00018759,2]
[338193329,1726381840538,-500.0,0.00018773,2]
[338193331,1726381840547,-230.12137817,0.00018773,2]
[338193333,1726381840559,-502.16903219,0.00018773,2]
[338193335,1726381840568,-500.0,0.00018773,2]
[338193337,1726381840578,-500.0,0.00018773,2]
[338193339,1726381840587,-500.0,0.00018773,2]
[338193341,1726381840596,-500.0,0.00018773,2]
[338193343,1726381840605,-375.28699432,0.00018773,2]
[338193345,1726381840615,-500.68393457,0.00018773,2]
[338193347,1726381840624,-500.0,0.00018773,2]
[338193349,1726381840633,-123.5260047,0.00018773,2]
[338193351,1726381840645,-376.4739953,0.00018773,2]
[338193353,1726381840655,-204.10913848,0.00018779,2]
[338193355,1726381840666,-520.96,0.00018779,2]
[338193357,1726381840679,-274.93086152,0.00018779,2]
[338193359,1726381840688,-314.35913848,0.0001878,2]
[338193362,1726381840700,-25730.76901702,0.0001878,2]
[338193363,1726381840709,-300.55266055,0.00018789,2]
[338193365,1726381840718,-8760.56478442,0.00018789,2]
[338193367,1726381840728,-1105.89899458,0.0001879,5]
[338193369,1726381840738,-2041.46618943,0.0001879,2]
[338193454,1726381843489,-24003.66196607,0.0001879,2]
[338193455,1726381843499,-14048.61516093,0.000188,2]
[338193456,1726381843508,-10997.0101096,0.000188,2]
[338195983,1726381997072,165.064629,0.00013699,2]
[338196008,1726382164377,704.89349139,0.00014,2]
[338196009,1726382164403,9295.10650861,0.00014,2]
[338196052,1726382840540,151000.0,0.00011,2]
[338196055,1726382863947,1000.0,0.0002,59]
[338196059,1726382954128,-572.6787337,0.00016607,2]
[338196060,1726382954153,-186.518512,0.00016886,2]
[338196061,1726382969763,242.80461951,0.000168,2]
[338196137,1726383038728,-186.518512,0.00016932,2]
[338196139,1726383038738,-757.19538049,0.0001695,2]
[338196141,1726383038747,-1047.95274721,0.00016968,2]
[338196143,1726383038757,-186.518512,0.00016979,2]
[338196145,1726383038767,-186.518512,0.00017025,2]
[338196147,1726383038776,-186.518512,0.00017071,2]
[338196149,1726383038785,-186.518512,0.00017118,2]
[338196151,1726383038794,-186.518512,0.00017164,2]
[338196153,1726383038805,-150.0,0.00017167,2]
[338196154,1726383038814,-186.518512,0.0001721,2]
[338196156,1726383038825,-186.518512,0.00017256,2]
[338196158,1726383038834,-186.518512,0.00017303,2]
[338196160,1726383038844,-186.518512,0.00017349,2]
[338196162,1726383038854,-186.518512,0.00017395,2]
[338196164,1726383038863,-186.518512,0.00017442,2]
[338196166,1726383038873,-186.518512,0.00017488,2]
[338196168,1726383038882,-186.518512,0.00017534,2]
[338196170,1726383038891,-186.518512,0.00017581,2]
[338196172,1726383038901,-186.518512,0.00017627,2]
[338196174,1726383038911,-186.518512,0.00017673,2]
[338196176,1726383038920,-186.518512,0.00017719,2]
[338196178,1726383038929,-186.518512,0.00017766,2]
[338196180,1726383038938,-153.0,0.00017778,2]
[338196182,1726383038948,-208.4916004,0.00017778,2]
[338196183,1726383038957,-208.579808,0.00017778,2]
[338196185,1726383038967,-306.0,0.00017778,2]
[338196187,1726383038977,-300.0,0.00017844,2]
[338196189,1726383038986,-1859.66337446,0.00017844,2]
[338196191,1726383038995,-500.0,0.0001786,2]
[338196193,1726383039005,-500.0,0.00017865,7]
[338196195,1726383039014,-500.0,0.00017865,7]
[338196197,1726383039024,-500.0,0.00017865,7]
[338196200,1726383039034,-500.0,0.00017865,7]
[338196202,1726383039044,-500.0,0.00017865,7]
[338196204,1726383039057,-500.0,0.00017865,7]
[338196206,1726383039068,-500.0,0.00017865,7]
[338196208,1726383039081,-500.0,0.00017865,7]
[338196210,1726383039092,-500.0,0.00017865,7]
[338196212,1726383039102,-500.0,0.00017865,7]
[338196214,1726383039111,-500.0,0.00017865,7]
[338196216,1726383039120,-500.0,0.00017865,7]
[338196218,1726383039130,-500.0,0.00017865,7]
[338196220,1726383039139,-432.65,0.00017865,7]
[338196221,1726383039151,-4202.30906858,0.000179,2]
[338196223,1726383039161,-43421.9579564,0.00018,2]
[338196225,1726383039170,-620.04208094,0.00018,2]
[338196227,1726383039180,-1000.0,0.00018,18]
[338196229,1726383039190,-190.0,0.00018068,2]
[338196231,1726383039200,-153.0,0.00018164,2]
[338196234,1726383039209,-153.0,0.00018164,2]
[338196235,1726383039218,-153.0,0.00018164,2]
[338196237,1726383039228,-208.579808,0.00018178,2]
[338196240,1726383039237,-153.0,0.000183,2]
[338196241,1726383039247,-417.159616,0.000183,2]
[338196243,1726383039256,-208.579808,0.000183,2]
[338196245,1726383039265,-208.579808,0.000183,2]
[338196247,1726383039275,-153.0,0.000183,2]
[338196249,1726383039285,-417.159616,0.000183,2]
[338196251,1726383039295,-500.0,0.0001836,2]
[338196254,1726383039306,-153.0,0.00018378,2]
[338196256,1726383039317,-208.579808,0.000184,2]
[338196258,1726383039328,-280.9720114,0.000184,2]
[338196260,1726383039338,-411.2611725,0.000184,2]
[338196262,1726383039348,-208.579808,0.000184,2]
[338196264,1726383039360,-411.2611725,0.000184,2]
[338196267,1726383039373,-208.579808,0.000184,2]
[338196269,1726383039384,-153.0,0.000184,2]
[338196271,1726383039395,-153.0,0.000184,2]
[338196273,1726383039406,-208.579808,0.000184,2]
[338196276,1726383039417,-208.579808,0.000185,2]
[338196278,1726383039427,-2000.000001,0.000185,2]
[338196280,1726383039439,-1000.0,0.00018567,2]
[338196282,1726383039449,-1000.0,0.00018586,2]
[338196284,1726383039461,-208.579808,0.000186,2]
[338196287,1726383039472,-518.5308155,0.00018601,2]
[338196289,1726383039481,-1000.0,0.00018602,2]
[338196291,1726383039491,-1000.0,0.00018609,2]
[338196293,1726383039500,-500.0,0.00018673,2]
[338196295,1726383039510,-199.54744107,0.00018673,2]
[338196297,1726383039520,-158.78131361,0.00018673,2]
[338196299,1726383039531,-500.0,0.00018673,2]
[338196301,1726383039542,-500.44334768,0.00018673,2]
[338196325,1726383039763,-500.0,0.00018673,2]
[338196328,1726383039780,-44084.4204041,0.0001868,2]
[338196330,1726383039790,-151.0,0.00018681,2]
[338196332,1726383039801,-36172.26904856,0.00018681,2]
[338196405,1726383040656,-500.0,0.00018673,2]
[338196407,1726383040668,-7912.15135554,0.00018681,2]
[338196409,1726383040679,-500.0,0.00018689,2]
[338196411,1726383040690,-500.0,0.00018689,2]
[338196413,1726383040700,-20000.0,0.0001869,2]
[338196416,1726383040710,-11070.16810275,0.0001869,2]
[338196419,1726383040731,-1915.59848942,0.0001869,2]
[338196734,1726383043716,-208.579808,0.00017778,2]
[338196736,1726383043725,-500.64703563,0.00018673,2]
[338196738,1726383043734,-17155.00031563,0.0001869,2]
[338196740,1726383043744,-233.861464,0.0001869,2]
[338196742,1726383043753,-151.0,0.0001869,2]
[338196744,1726383043762,-151.0,0.0001869,2]
[338196746,1726383043771,-151.0,0.0001869,2]
[338196748,1726383043780,-151.0,0.0001869,2]
[338196750,1726383043789,-151.0,0.0001869,2]
[338196752,1726383043799,-2785.427517,0.0001869,2]
[338196754,1726383043808,-2785.427517,0.0001869,2]
[338196756,1726383043819,-2785.427517,0.0001869,2]
[338196758,1726383043828,-2785.427517,0.0001869,2]
[338196760,1726383043838,-932.783709,0.0001869,2]
[338196762,1726383043847,-932.783709,0.0001869,2]
[338196764,1726383043856,-932.783709,0.0001869,2]
[338196766,1726383043865,-932.783709,0.0001869,2]
[338196768,1726383043874,-151.0,0.00018691,2]
[338196770,1726383043884,-291.190245,0.00018691,2]
[338196772,1726383043893,-2785.427517,0.00018691,2]
[338196774,1726383043903,-2785.427517,0.00018691,2]
[338196776,1726383043912,-932.783709,0.00018691,2]
[338196778,1726383043921,-932.783709,0.00018691,2]
[338196780,1726383043930,-7444.74101234,0.00018691,2]
[338198625,1726383527872,200.0,0.0002051,120]
[338198628,1726383600853,5000.0,0.00014,2]
[338198629,1726383616881,2591.096548,0.00014,2]
[338198645,1726383741090,5000.0,0.0001199,2]
[338198647,1726383756103,5000.0,0.0001199,2]
[338198651,1726383772134,5000.0,0.0001199,2]
[338198670,1726383791671,5000.0,0.0001199,2]
[338198671,1726383800692,5000.0,0.0001199,2]
[338198672,1726383808468,5000.0,0.0001199,2]
[338198674,1726383817192,5000.0,0.0001199,2]
[338198675,1726383825248,5000.0,0.0001199,2]
[338198676,1726383833353,5000.0,0.0001199,2]
[338198677,1726383841188,5000.0,0.0001199,2]
[338198678,1726383849843,5000.0,0.0001199,2]
[338198679,1726383857668,5000.0,0.0001199,2]
[338198680,1726383865793,5000.0,0.0001199,2]
[338198681,1726383873688,198.73128476,0.0001199,2]
[338198682,1726383882420,5000.0,0.0001199,2]
[338198692,1726383898746,5000.0,0.0001199,2]
[338198693,1726383913790,5000.0,0.0001199,2]
[338198704,1726383929172,453.62051766,0.0001199,2]
[338198707,1726383945511,5000.0,0.0001199,2]
[338198713,1726384095779,1955.28293434,0.0001199,2]
[338198718,1726384183417,901.67425066,0.0001199,2]
[338198719,1726384183443,1840.36872441,0.0001199,2]
[338198764,1726384231827,-498.25893914,0.0001742,2]
[338198791,1726384237807,-1006.79657869,0.0001742,2]
[338198792,1726384237819,-498.25893914,0.0001742,2]
[338198793,1726384237832,-395.2170012,0.0001752,2]
[338198794,1726384237842,-250.0,0.00017595,2]
[338198795,1726384237852,-2001.0006231,0.00017739,2]
[338198796,1726384237862,-1153.96947213,0.00018382,2]
[338198797,1726384237872,-151.38,0.00018462,2]
[338198799,1726384237883,-524.0,0.00018462,2]
[338198801,1726384237892,-283.733,0.00018462,2]
[338198803,1726384237903,-192.7658216,0.00018472,2]
[338198806,1726384237918,-153.0,0.000185,2]
[338198808,1726384237929,-300.0,0.0001858,2]
[338198809,1726384237938,-300.0,0.0001858,2]
[338198810,1726384237948,-1000.0,0.00018581,2]
[338198811,1726384237958,-8817.34541145,0.00018592,2]
[338198812,1726384237971,-1415.8191905,0.00018592,2]
[338198813,1726384237981,-2411.91857631,0.00018592,2]
[338198814,1726384237991,-306.0,0.000186,2]
[338198815,1726384238001,-153.0,0.000186,2]
[338198816,1726384238010,-415.4892359,0.000186,2]
[338198817,1726384238020,-153.0,0.000186,2]
[338198818,1726384238030,-1033.01840503,0.00018601,7]
[338198819,1726384238039,-1000.0,0.00018609,2]
[338198820,1726384238049,-150.0,0.00018639,2]
[338198823,1726384238059,-1000.0,0.00018645,2]
[338198824,1726384238068,-401.91728698,0.0001867,2]
[338198826,1726384238078,-1559.83730528,0.00018671,2]
[338198827,1726384238094,-7321.97638431,0.00018671,2]
[338198830,1726384238109,-21169.91021951,0.00018671,2]
[338198832,1726384238119,-1627.94488801,0.00018671,2]
[338198834,1726384238136,-90155.1717273,0.00018671,2]
[338198836,1726384238146,-4883.83466403,0.00018671,2]
[338198838,1726384238156,-151.872509,0.00018672,2]
[338198840,1726384238166,-30051.7239091,0.00018672,2]
[338198843,1726384238177,-1627.94488801,0.00018672,2]
[338198845,1726384238187,-500.0,0.00018673,2]
[338198847,1726384238197,-260.99827811,0.00018673,2]
[338198849,1726384238208,-500.0,0.00018673,2]
[338198851,1726384238218,-500.0,0.00018673,2]
[338198853,1726384238228,-500.0,0.00018673,2]
[338198855,1726384238238,-500.0,0.00018673,2]
[338198857,1726384238247,-500.0,0.00018673,2]
[338198859,1726384238257,-160.80573572,0.00018673,2]
[338198861,1726384238267,-500.0,0.00018673,2]
[338198863,1726384238276,-500.0,0.00018673,2]
[338198865,1726384238285,-500.0,0.00018673,2]
[338198867,1726384238295,-500.0,0.00018673,2]
[338198869,1726384238305,-500.0,0.00018673,2]
[338198871,1726384238315,-500.0,0.00018673,2]
[338198873,1726384238324,-500.0,0.00018673,2]
[338198875,1726384238334,-500.65581001,0.00018673,2]
[338198877,1726384238343,-500.0,0.00018673,2]
[338198879,1726384238353,-500.57129952,0.00018673,2]
[338198881,1726384238363,-500.0,0.00018673,2]
[338198884,1726384238373,-500.0,0.00018679,2]
[338198886,1726384238386,-500.0,0.00018679,2]
[338198888,1726384238396,-524.3054521,0.00018679,2]
[338198890,1726384238407,-169.36727245,0.00018679,2]
[338198892,1726384238416,-1000.0,0.0001868,2]
[338198894,1726384238426,-267.0546532,0.0001868,2]
[338198896,1726384238437,-293.39931444,0.0001868,2]
[338198898,1726384238447,-500.0,0.0001868,2]
[338198900,1726384238457,-487.70396101,0.0001868,2]
[338198903,1726384238467,-518.24126504,0.0001868,2]
[338198905,1726384238477,-500.0,0.0001868,2]
[338198907,1726384238488,-234.90044164,0.0001868,2]
[338198909,1726384238503,-265.09955836,0.0001868,2]
[338198911,1726384238512,-500.0,0.0001868,2]
[338198913,1726384238522,-500.0,0.0001868,2]
[338198915,1726384238532,-500.0,0.0001868,2]
[338198917,1726384238541,-500.0,0.0001868,2]
[338198919,1726384238551,-500.0,0.0001868,2]
[338198921,1726384238561,-500.0,0.0001868,2]
[338198923,1726384238570,-30051.7239091,0.0001868,2]
[338198925,1726384238580,-1627.94488801,0.0001868,2]
[338198927,1726384238590,-30051.7239091,0.00018681,2]
[338198929,1726384238600,-1627.94488801,0.00018681,2]
[338198932,1726384238611,-1105.89899458,0.00018681,5]
[338198934,1726384238620,-30051.7239091,0.00018681,2]
[338198936,1726384238630,-3255.88977602,0.00018681,2]
[338198938,1726384238641,-544.010229,0.00018681,2]
[338198940,1726384238651,-544.010229,0.00018681,2]
[338198942,1726384238660,-544.010229,0.00018681,2]
[338198944,1726384238671,-544.010229,0.00018681,2]
[338198946,1726384238680,-544.010229,0.00018681,2]
[338198948,1726384238690,-544.010229,0.00018681,2]
[338198950,1726384238700,-151.0,0.00018681,2]
[338198952,1726384238711,-151.0,0.00018681,2]
[338198954,1726384238720,-151.0,0.00018681,2]
[338198956,1726384238732,-395.883163,0.00018681,2]
[338198958,1726384238742,-395.883163,0.00018681,2]
[338198960,1726384238752,-395.883163,0.00018681,2]
[338198963,1726384238762,-395.883163,0.00018681,2]
[338198965,1726384238772,-395.883163,0.00018681,2]
[338198967,1726384238782,-395.883163,0.00018681,2]
[338198969,1726384238792,-151.0,0.00018681,2]
[338198971,1726384238801,-233.861464,0.00018681,2]
[338198973,1726384238811,-151.0,0.00018681,2]
[338198975,1726384238821,-151.0,0.00018681,2]
[338198977,1726384238830,-151.0,0.00018681,2]
[338198979,1726384238840,-151.0,0.00018681,2]
[338198981,1726384238849,-151.0,0.00018681,2]
[338198983,1726384238859,-151.0,0.00018681,2]
[338198985,1726384238869,-441.11824,0.00018681,2]
[338198987,1726384238878,-441.11824,0.00018681,2]
[338198989,1726384238888,-441.11824,0.00018681,2]
[338198991,1726384238899,-441.11824,0.00018681,2]
[338198993,1726384238910,-441.11824,0.00018681,2]
[338198995,1726384238920,-441.11824,0.00018681,2]
[338198997,1726384238930,-151.0,0.00018681,2]
[338198999,1726384238939,-151.0,0.00018681,2]
[338199001,1726384238951,-151.0,0.00018681,2]
[338199003,1726384238962,-151.0,0.00018681,2]
[338199005,1726384238972,-151.0,0.00018681,2]
[338199008,1726384238984,-266.68391,0.00018681,2]
[338199010,1726384238995,-151.0,0.00018681,2]
[338199012,1726384239006,-152.489213,0.00018681,2]
[338199014,1726384239016,-151.0,0.00018681,2]
[338199016,1726384239027,-151.0,0.00018681,2]
[338199018,1726384239037,-151.0,0.00018681,2]
[338199020,1726384239049,-536.089054,0.00018681,2]
[338199023,1726384239060,-536.089054,0.00018681,2]
[338199025,1726384239071,-536.089054,0.00018681,2]